[Event "Titled Tuesday Blitz June 6 Late 2023"]
[White "Herman, Daniel"]
[Black "Arias Igual, Alejandro"]
[WhiteFideId "30935008"]
[BlackFideId "2254905"]
[WhiteElo "1897"]
[BlackElo "2179"]
[Result "0-1"]
[Round "8"]
[TimeControl "180+2"]
[Date "2023.06.07"]
[WhiteClock "0:00:41"]
[BlackClock "0:00:32"]
[Board "93"]

1. e4 {[%clk 0:03:00]}  c5 {[%clk 0:02:59]} 2. Nf3 {[%clk 0:02:56]}  g6 {[%clk 0:02:58]} 3. d4 {[%clk 0:02:56]}  cxd4 {[%clk 0:02:58]} 4. Nxd4 {[%clk 0:02:56]}  Nc6 {[%clk 0:02:57]} 5. c4 {[%clk 0:02:56]}  Nf6 {[%clk 0:02:57]} 6. Nc3 {[%clk 0:02:56]}  d6 {[%clk 0:02:57]} 7. Be2 {[%clk 0:02:55]}  Nxd4 {[%clk 0:02:57]} 8. Qxd4 {[%clk 0:02:55]}  Bg7 {[%clk 0:02:57]} 9. Be3 {[%clk 0:02:54]}  O-O {[%clk 0:02:57]} 10. Qd2 {[%clk 0:02:54]}  Be6 {[%clk 0:02:55]} 11. O-O {[%clk 0:02:51]}  Qa5 {[%clk 0:02:55]} 12. f3 {[%clk 0:02:46]}  Rfc8 {[%clk 0:02:53]} 13. b3 {[%clk 0:02:39]}  a6 {[%clk 0:02:52]} 14. Rab1 {[%clk 0:02:38]}  b5 {[%clk 0:02:25]} 15. b4 {[%clk 0:02:37]}  Qd8 {[%clk 0:02:24]} 16. cxb5 {[%clk 0:02:35]}  axb5 {[%clk 0:02:17]} 17. Nxb5 {[%clk 0:02:33]}  Rxa2 {[%clk 0:02:14]} 18. Qe1 {[%clk 0:02:30]}  Rxe2 {[%clk 0:02:12]} 19. Qxe2 {[%clk 0:02:26]}  Bc4 {[%clk 0:02:11]} 20. Qf2 {[%clk 0:02:26]}  Bxb5 {[%clk 0:02:10]} 21. Rfc1 {[%clk 0:02:25]}  Rb8 {[%clk 0:02:04]} 22. Ra1 {[%clk 0:02:19]}  Nd7 {[%clk 0:01:48]} 23. Ra7 {[%clk 0:02:17]}  Rc8 {[%clk 0:01:34]} 24. Qd2 {[%clk 0:02:10]}  Ne5 {[%clk 0:01:25]} 25. Qd5 {[%clk 0:01:46]}  Rxc1+ {[%clk 0:01:19]} 26. Bxc1 {[%clk 0:01:47]}  Qb6+ {[%clk 0:01:18]} 27. Kh1 {[%clk 0:01:36]}  Qxa7 {[%clk 0:01:17]} 28. Qxb5 {[%clk 0:01:37]}  Qa1 {[%clk 0:01:12]} 29. Qb8+ {[%clk 0:01:33]}  Bf8 {[%clk 0:01:11]} 30. h3 {[%clk 0:01:21]}  Qxc1+ {[%clk 0:01:10]} 31. Kh2 {[%clk 0:01:22]}  Qf4+ {[%clk 0:01:06]} 32. Kg1 {[%clk 0:01:21]}  Qe3+ {[%clk 0:01:02]} 33. Kh2 {[%clk 0:01:20]}  Kg7 {[%clk 0:00:49]} 34. b5 {[%clk 0:01:20]}  Nc4 {[%clk 0:00:45]} 35. Qc7 {[%clk 0:01:19]}  Nb6 {[%clk 0:00:44]} 36. Qc6 {[%clk 0:01:19]}  Qc5 {[%clk 0:00:42]} 37. Qe8 {[%clk 0:01:19]}  e6 {[%clk 0:00:40]} 38. h4 {[%clk 0:01:11]}  d5 {[%clk 0:00:40]} 39. exd5 {[%clk 0:01:07]}  Qxd5 {[%clk 0:00:38]} 40. Kh3 {[%clk 0:00:53]}  Bd6 {[%clk 0:00:34]} 41. Qd8 {[%clk 0:00:45]}  Qf5+ {[%clk 0:00:33]} 42. g4 {[%clk 0:00:41]}  Qxf3# {[%clk 0:00:32]} 0-1


[Site "https://www.chess.com"]

[Event "Titled Tuesday Blitz June 6 Late 2023"]
[White "Celestino, Rafael Teixeira"]
[Black "Martin Barcelo, Carles"]
[WhiteFideId "2108925"]
[BlackFideId "24561444"]
[WhiteElo "2317"]
[BlackElo "2089"]
[Result "0-1"]
[Round "8"]
[TimeControl "180+2"]
[Date "2023.06.07"]
[WhiteClock "0:00:24"]
[BlackClock "0:00:02"]
[Board "95"]

1. e4 {[%clk 0:03:00]}  e6 {[%clk 0:02:59]} 2. d4 {[%clk 0:03:00]}  d5 {[%clk 0:03:00]} 3. Bd3 {[%clk 0:03:01]}  dxe4 {[%clk 0:02:53]} 4. Bxe4 {[%clk 0:03:02]}  Nf6 {[%clk 0:02:53]} 5. Bf3 {[%clk 0:02:58]}  c6 {[%clk 0:02:53]} 6. Ne2 {[%clk 0:02:55]}  Nbd7 {[%clk 0:02:53]} 7. O-O {[%clk 0:02:55]}  Bd6 {[%clk 0:02:53]} 8. c4 {[%clk 0:02:53]}  O-O {[%clk 0:02:53]} 9. Nbc3 {[%clk 0:02:52]}  Re8 {[%clk 0:02:53]} 10. Re1 {[%clk 0:02:51]}  e5 {[%clk 0:02:52]} 11. g3 {[%clk 0:02:46]}  exd4 {[%clk 0:02:46]} 12. Nxd4 {[%clk 0:02:47]}  Rxe1+ {[%clk 0:02:45]} 13. Qxe1 {[%clk 0:02:48]}  Ne5 {[%clk 0:02:45]} 14. Bg2 {[%clk 0:02:43]}  Bc5 {[%clk 0:02:16]} 15. Be3 {[%clk 0:02:26]}  Bxd4 {[%clk 0:02:10]} 16. Rd1 {[%clk 0:02:24]}  Bg4 {[%clk 0:01:36]} 17. Rxd4 {[%clk 0:02:23]}  Qe7 {[%clk 0:01:33]} 18. Qf1 {[%clk 0:01:31]}  Nf3+ {[%clk 0:01:21]} 19. Bxf3 {[%clk 0:01:30]}  Bxf3 {[%clk 0:01:22]} 20. Rf4 {[%clk 0:01:29]}  Bh5 {[%clk 0:01:21]} 21. Bd4 {[%clk 0:01:02]}  Nd7 {[%clk 0:01:16]} 22. Qh3 {[%clk 0:00:55]}  Bg6 {[%clk 0:01:09]} 23. Qf1 {[%clk 0:00:27]}  Re8 {[%clk 0:01:04]} 24. h4 {[%clk 0:00:26]}  h6 {[%clk 0:01:01]} 25. Be3 {[%clk 0:00:25]}  Ne5 {[%clk 0:00:58]} 26. b3 {[%clk 0:00:21]}  a6 {[%clk 0:00:38]} 27. Qd1 {[%clk 0:00:21]}  Qe6 {[%clk 0:00:37]} 28. Kg2 {[%clk 0:00:17]}  Qe7 {[%clk 0:00:34]} 29. Bd4 {[%clk 0:00:16]}  h5 {[%clk 0:00:24]} 30. Bxe5 {[%clk 0:00:13]}  Qxe5 {[%clk 0:00:25]} 31. Rd4 {[%clk 0:00:14]}  Qf5 {[%clk 0:00:17]} 32. Qf3 {[%clk 0:00:12]}  Qc2 {[%clk 0:00:16]} 33. Na4 {[%clk 0:00:11]}  Qxa2 {[%clk 0:00:15]} 34. Nc5 {[%clk 0:00:11]}  Re7 {[%clk 0:00:15]} 35. Nd7 {[%clk 0:00:10]}  Qc2 {[%clk 0:00:11]} 36. Nc5 {[%clk 0:00:10]}  Qf5 {[%clk 0:00:09]} 37. Qxf5 {[%clk 0:00:07]}  Bxf5 {[%clk 0:00:10]} 38. Nd3 {[%clk 0:00:08]}  Bxd3 {[%clk 0:00:09]} 39. Rxd3 {[%clk 0:00:09]}  f6 {[%clk 0:00:09]} 40. Kf3 {[%clk 0:00:09]}  Kf7 {[%clk 0:00:09]} 41. c5 {[%clk 0:00:10]}  Ke6 {[%clk 0:00:09]} 42. b4 {[%clk 0:00:10]}  Rd7 {[%clk 0:00:08]} 43. Re3+ {[%clk 0:00:11]}  Kd5 {[%clk 0:00:07]} 44. Re4 {[%clk 0:00:09]}  a5 {[%clk 0:00:03]} 45. bxa5 {[%clk 0:00:08]}  Kxc5 {[%clk 0:00:04]} 46. Kf4 {[%clk 0:00:06]}  Kb5 {[%clk 0:00:04]} 47. Kf5 {[%clk 0:00:06]}  Kxa5 {[%clk 0:00:04]} 48. Ke6 {[%clk 0:00:06]}  Rd5 {[%clk 0:00:04]} 49. Kf7 {[%clk 0:00:06]}  g5 {[%clk 0:00:03]} 50. Kxf6 {[%clk 0:00:05]}  gxh4 {[%clk 0:00:03]} 51. gxh4 {[%clk 0:00:06]}  b5 {[%clk 0:00:03]} 52. Re8 {[%clk 0:00:06]}  b4 {[%clk 0:00:03]} 53. Ke6 {[%clk 0:00:07]}  b3 {[%clk 0:00:03]} 54. Ra8+ {[%clk 0:00:08]}  Kb4 {[%clk 0:00:03]} 55. Rb8+ {[%clk 0:00:08]}  Rb5 {[%clk 0:00:03]} 56. Ra8 {[%clk 0:00:07]}  b2 {[%clk 0:00:03]} 57. Kd6 {[%clk 0:00:07]}  b1=Q {[%clk 0:00:03]} 58. f4 {[%clk 0:00:07]}  Qd3+ {[%clk 0:00:03]} 59. Kc7 {[%clk 0:00:08]}  Qd5 {[%clk 0:00:03]} 60. Rd8 {[%clk 0:00:07]}  Qxd8+ {[%clk 0:00:02]} 61. Kxd8 {[%clk 0:00:07]}  Rf5 {[%clk 0:00:03]} 62. Kd7 {[%clk 0:00:07]}  Rxf4 {[%clk 0:00:04]} 63. Kxc6 {[%clk 0:00:08]}  Rxh4 {[%clk 0:00:05]} 64. Kd5 {[%clk 0:00:09]}  Rg4 {[%clk 0:00:05]} 65. Ke5 {[%clk 0:00:10]}  Kc4 {[%clk 0:00:05]} 66. Kf5 {[%clk 0:00:10]}  Kd3 {[%clk 0:00:06]} 67. Ke5 {[%clk 0:00:11]}  Ke3 {[%clk 0:00:07]} 68. Kf5 {[%clk 0:00:12]}  Kf3 {[%clk 0:00:08]} 69. Ke5 {[%clk 0:00:12]}  h4 {[%clk 0:00:09]} 70. Kf5 {[%clk 0:00:13]}  h3 {[%clk 0:00:10]} 71. Ke5 {[%clk 0:00:14]}  h2 {[%clk 0:00:11]} 72. Kf5 {[%clk 0:00:15]}  h1=Q {[%clk 0:00:12]} 73. Ke5 {[%clk 0:00:16]}  Qh5+ {[%clk 0:00:12]} 74. Kd6 {[%clk 0:00:17]}  Rg6+ {[%clk 0:00:12]} 75. Ke7 {[%clk 0:00:17]}  Qh7+ {[%clk 0:00:13]} 76. Kf8 {[%clk 0:00:18]}  Rh6 {[%clk 0:00:13]} 77. Ke8 {[%clk 0:00:17]}  Qg7 {[%clk 0:00:13]} 78. Kd8 {[%clk 0:00:17]}  Qf7 {[%clk 0:00:14]} 79. Kc8 {[%clk 0:00:17]}  Qe7 {[%clk 0:00:14]} 80. Kb8 {[%clk 0:00:18]}  Qd7 {[%clk 0:00:15]} 81. Ka8 {[%clk 0:00:18]}  Rg6 {[%clk 0:00:15]} 82. Kb8 {[%clk 0:00:18]}  Rf6 {[%clk 0:00:15]} 83. Ka8 {[%clk 0:00:19]}  Re6 {[%clk 0:00:16]} 84. Kb8 {[%clk 0:00:20]}  Rf6 {[%clk 0:00:16]} 85. Ka8 {[%clk 0:00:21]}  Rf7 {[%clk 0:00:16]} 86. Kb8 {[%clk 0:00:22]}  Re7 {[%clk 0:00:17]} 87. Ka8 {[%clk 0:00:22]}  Rg7 {[%clk 0:00:17]} 88. Kb8 {[%clk 0:00:23]}  Rh7 {[%clk 0:00:18]} 89. Ka8 {[%clk 0:00:24]}  Rh8# {[%clk 0:00:02]} 0-1


[Site "https://www.chess.com"]

[Event "Titled Tuesday Blitz June 6 Late 2023"]
[White "Wang, Alexander J"]
[Black "Ansh M Shah"]
[WhiteFideId "30955270"]
[BlackFideId "25033379"]
[WhiteElo "2277"]
[BlackElo "2084"]
[Result "0-1"]
[Round "8"]
[TimeControl "180+2"]
[Date "2023.06.07"]
[WhiteClock "0:02:26"]
[BlackClock "0:02:36"]
[Board "96"]

1. e4 {[%clk 0:03:00]}  c6 {[%clk 0:02:54]} 2. d4 {[%clk 0:03:00]}  d5 {[%clk 0:02:55]} 3. f3 {[%clk 0:02:59]}  dxe4 {[%clk 0:02:55]} 4. fxe4 {[%clk 0:02:59]}  e5 {[%clk 0:02:55]} 5. Nf3 {[%clk 0:02:59]}  Bg4 {[%clk 0:02:56]} 6. Bc4 {[%clk 0:02:57]}  Nd7 {[%clk 0:02:56]} 7. c3 {[%clk 0:02:54]}  Bd6 {[%clk 0:02:56]} 8. Qb3 {[%clk 0:02:52]}  Qe7 {[%clk 0:02:56]} 9. Qxb7 {[%clk 0:02:44]}  Rb8 {[%clk 0:02:56]} 10. Qxc6 {[%clk 0:02:44]}  Bxf3 {[%clk 0:02:57]} 11. gxf3 {[%clk 0:02:43]}  Nf6 {[%clk 0:02:58]} 12. d5 {[%clk 0:02:36]}  O-O {[%clk 0:02:48]} 13. Bb3 {[%clk 0:02:35]}  Nc5 {[%clk 0:02:39]} 14. Be3 {[%clk 0:02:26]}  Rfc8 {[%clk 0:02:36]} 0-1


[Site "https://www.chess.com"]

[Event "Titled Tuesday Blitz June 6 Late 2023"]
[White "Omariev, Maksim"]
[Black "Cagara, Paulina"]
[WhiteFideId "4193423"]
[BlackFideId "1124870"]
[WhiteElo "2415"]
[BlackElo "1967"]
[Result "0-1"]
[Round "8"]
[TimeControl "180+2"]
[Date "2023.06.07"]
[WhiteClock "0:00:02"]
[BlackClock "0:00:15"]
[Board "97"]

1. g4 {[%clk 0:02:59]}  d5 {[%clk 0:02:59]} 2. Bg2 {[%clk 0:02:55]}  Bxg4 {[%clk 0:02:57]} 3. c4 {[%clk 0:02:55]}  Nf6 {[%clk 0:02:49]} 4. Qb3 {[%clk 0:02:54]}  Bc8 {[%clk 0:02:47]} 5. cxd5 {[%clk 0:02:53]}  c6 {[%clk 0:02:39]} 6. Nc3 {[%clk 0:02:52]}  Qb6 {[%clk 0:02:29]} 7. Qxb6 {[%clk 0:02:30]}  axb6 {[%clk 0:02:29]} 8. d4 {[%clk 0:02:31]}  Bg4 {[%clk 0:02:23]} 9. Bg5 {[%clk 0:02:12]}  e6 {[%clk 0:02:20]} 10. dxe6 {[%clk 0:02:07]}  Bxe6 {[%clk 0:02:17]} 11. Bxf6 {[%clk 0:02:05]}  gxf6 {[%clk 0:02:17]} 12. a3 {[%clk 0:01:53]}  Rg8 {[%clk 0:02:15]} 13. Be4 {[%clk 0:01:48]}  f5 {[%clk 0:02:08]} 14. Bf3 {[%clk 0:01:25]}  Bb4 {[%clk 0:02:04]} 15. Rc1 {[%clk 0:01:22]}  Bd6 {[%clk 0:02:02]} 16. e3 {[%clk 0:01:15]}  f4 {[%clk 0:01:55]} 17. e4 {[%clk 0:01:12]}  b5 {[%clk 0:01:46]} 18. e5 {[%clk 0:00:54]}  Be7 {[%clk 0:01:39]} 19. Nge2 {[%clk 0:00:54]}  b4 {[%clk 0:01:36]} 20. axb4 {[%clk 0:00:53]}  Bxb4 {[%clk 0:01:36]} 21. Nxf4 {[%clk 0:00:53]}  Bf5 {[%clk 0:01:31]} 22. d5 {[%clk 0:00:37]}  cxd5 {[%clk 0:01:24]} 23. Nxd5 {[%clk 0:00:36]}  Kf8 {[%clk 0:01:10]} 24. Nxb4 {[%clk 0:00:34]}  Nd7 {[%clk 0:01:07]} 25. Be4 {[%clk 0:00:08]}  Bxe4 {[%clk 0:00:55]} 26. Nxe4 {[%clk 0:00:09]}  Nxe5 {[%clk 0:00:55]} 27. Ke2 {[%clk 0:00:09]}  Re8 {[%clk 0:00:54]} 28. f3 {[%clk 0:00:05]}  Rg6 {[%clk 0:00:47]} 29. Kf2 {[%clk 0:00:04]}  Rd8 {[%clk 0:00:36]} 30. Rc2 {[%clk 0:00:04]}  Rd4 {[%clk 0:00:34]} 31. Na2 {[%clk 0:00:03]}  Nd3+ {[%clk 0:00:33]} 32. Ke3 {[%clk 0:00:03]}  Rd7 {[%clk 0:00:20]} 33. Rd1 {[%clk 0:00:03]}  Ne5 {[%clk 0:00:20]} 34. Rxd7 {[%clk 0:00:03]}  Nxd7 {[%clk 0:00:20]} 35. Nb4 {[%clk 0:00:03]}  Re6 {[%clk 0:00:17]} 36. Nd3 {[%clk 0:00:03]}  f5 {[%clk 0:00:16]} 37. Nf4 {[%clk 0:00:03]}  Re8 {[%clk 0:00:16]} 38. Rc7 {[%clk 0:00:02]}  Nf6 {[%clk 0:00:15]} 0-1


[Site "https://www.chess.com"]

[Event "Titled Tuesday Blitz June 6 Late 2023"]
[White "Sanchez, Robert"]
[Black "Abduzhaparov"]
[WhiteFideId "2034360"]
[WhiteElo "1893"]
[BlackElo "2406"]
[Result "0-1"]
[Round "8"]
[TimeControl "180+2"]
[Date "2023.06.07"]
[WhiteClock "0:01:56"]
[BlackClock "0:01:31"]
[Board "98"]

1. e4 {[%clk 0:03:00]}  d6 {[%clk 0:02:59]} 2. d4 {[%clk 0:03:00]}  Nf6 {[%clk 0:03:00]} 3. Nc3 {[%clk 0:03:00]}  e5 {[%clk 0:03:01]} 4. Nf3 {[%clk 0:03:01]}  Nbd7 {[%clk 0:03:00]} 5. Bc4 {[%clk 0:03:01]}  Be7 {[%clk 0:03:00]} 6. O-O {[%clk 0:03:01]}  O-O {[%clk 0:03:01]} 7. a4 {[%clk 0:03:01]}  c6 {[%clk 0:03:01]} 8. h3 {[%clk 0:03:00]}  b6 {[%clk 0:03:01]} 9. Be3 {[%clk 0:02:58]}  a6 {[%clk 0:03:01]} 10. dxe5 {[%clk 0:02:55]}  dxe5 {[%clk 0:02:58]} 11. a5 {[%clk 0:02:52]}  b5 {[%clk 0:02:56]} 12. Bd3 {[%clk 0:02:52]}  c5 {[%clk 0:02:52]} 13. Nd5 {[%clk 0:02:47]}  Nxd5 {[%clk 0:02:46]} 14. exd5 {[%clk 0:02:47]}  Bd6 {[%clk 0:02:46]} 15. b3 {[%clk 0:02:39]}  f5 {[%clk 0:02:43]} 16. Be2 {[%clk 0:02:30]}  f4 {[%clk 0:02:31]} 17. Bd2 {[%clk 0:02:22]}  e4 {[%clk 0:02:31]} 18. Nh2 {[%clk 0:02:19]}  Ne5 {[%clk 0:02:15]} 19. Bg4 {[%clk 0:02:15]}  f3 {[%clk 0:02:07]} 20. Re1 {[%clk 0:02:03]}  Nxg4 {[%clk 0:01:59]} 21. Nxg4 {[%clk 0:02:04]}  Bxg4 {[%clk 0:01:57]} 22. Rxe4 {[%clk 0:02:01]}  Bf5 {[%clk 0:01:48]} 23. Re1 {[%clk 0:01:58]}  fxg2 {[%clk 0:01:44]} 24. c4 {[%clk 0:01:56]}  Qh4 {[%clk 0:01:31]} 0-1


[Site "https://www.chess.com"]

[Event "Titled Tuesday Blitz June 6 Late 2023"]
[White "Gomez Ledo, Roberto Carlos"]
[Black "sebastianmarinp"]
[WhiteFideId "3507076"]
[WhiteElo "2378"]
[BlackElo "2370"]
[Result "1-0"]
[Round "8"]
[TimeControl "180+2"]
[Date "2023.06.07"]
[WhiteClock "0:00:28"]
[BlackClock "0:00:01"]
[Board "100"]

1. d4 {[%clk 0:03:00]}  Nf6 {[%clk 0:02:59]} 2. Bf4 {[%clk 0:02:59]}  d5 {[%clk 0:02:58]} 3. e3 {[%clk 0:02:58]}  c5 {[%clk 0:02:58]} 4. c3 {[%clk 0:02:58]}  Nc6 {[%clk 0:02:59]} 5. Nd2 {[%clk 0:02:58]}  e6 {[%clk 0:02:54]} 6. Ngf3 {[%clk 0:02:57]}  Bd6 {[%clk 0:02:50]} 7. Bg3 {[%clk 0:02:56]}  O-O {[%clk 0:02:50]} 8. Bd3 {[%clk 0:02:56]}  Qc7 {[%clk 0:02:41]} 9. dxc5 {[%clk 0:02:55]}  Bxg3 {[%clk 0:02:37]} 10. hxg3 {[%clk 0:02:56]}  e5 {[%clk 0:02:30]} 11. e4 {[%clk 0:02:56]}  Bg4 {[%clk 0:02:21]} 12. Rh4 {[%clk 0:02:45]}  Rad8 {[%clk 0:02:13]} 13. Qe2 {[%clk 0:02:44]}  d4 {[%clk 0:02:03]} 14. c4 {[%clk 0:02:37]}  Qa5 {[%clk 0:01:54]} 15. a3 {[%clk 0:02:23]}  Qxc5 {[%clk 0:01:54]} 16. O-O-O {[%clk 0:02:20]}  a5 {[%clk 0:01:48]} 17. Kb1 {[%clk 0:02:20]}  a4 {[%clk 0:01:46]} 18. Rdh1 {[%clk 0:02:16]}  h6 {[%clk 0:01:43]} 19. Qe1 {[%clk 0:02:06]}  Ra8 {[%clk 0:01:19]} 20. Nh2 {[%clk 0:02:05]}  Be6 {[%clk 0:01:17]} 21. g4 {[%clk 0:02:06]}  Na5 {[%clk 0:01:02]} 22. Nhf1 {[%clk 0:01:38]}  Nxg4 {[%clk 0:00:52]} 23. f3 {[%clk 0:01:27]}  Ne3 {[%clk 0:00:51]} 24. Qg3 {[%clk 0:01:12]}  Nxf1 {[%clk 0:00:32]} 25. Bxf1 {[%clk 0:01:04]}  Kh7 {[%clk 0:00:19]} 26. Rxh6+ {[%clk 0:00:47]}  gxh6 {[%clk 0:00:18]} 27. Qg5 {[%clk 0:00:47]}  Bh3 {[%clk 0:00:02]} 28. Rxh3 {[%clk 0:00:43]}  Qd6 {[%clk 0:00:02]} 29. Bd3 {[%clk 0:00:27]}  Qe6 {[%clk 0:00:01]} 30. Qh4 {[%clk 0:00:28]} 1-0


[Site "https://www.chess.com"]

[Event "Titled Tuesday Blitz June 6 Late 2023"]
[White "KorolDimitriy75"]
[Black "Gonzalez Vega, Alejandro"]
[BlackFideId "3510042"]
[WhiteElo "2445"]
[BlackElo "2320"]
[Result "1/2-1/2"]
[Round "8"]
[TimeControl "180+2"]
[Date "2023.06.07"]
[WhiteClock "0:00:03"]
[BlackClock "0:00:11"]
[Board "103"]

1. d4 {[%clk 0:03:00]}  d5 {[%clk 0:02:59]} 2. c4 {[%clk 0:03:00]}  e6 {[%clk 0:02:59]} 3. Nc3 {[%clk 0:03:01]}  Nf6 {[%clk 0:02:59]} 4. Bg5 {[%clk 0:03:01]}  Nbd7 {[%clk 0:02:58]} 5. cxd5 {[%clk 0:03:01]}  exd5 {[%clk 0:02:58]} 6. e3 {[%clk 0:03:01]}  c6 {[%clk 0:02:57]} 7. Bd3 {[%clk 0:03:01]}  Be7 {[%clk 0:02:56]} 8. Qc2 {[%clk 0:03:02]}  O-O {[%clk 0:02:56]} 9. Nge2 {[%clk 0:03:01]}  Re8 {[%clk 0:02:56]} 10. f3 {[%clk 0:03:01]}  Nf8 {[%clk 0:02:57]} 11. O-O {[%clk 0:03:00]}  Be6 {[%clk 0:02:53]} 12. Rad1 {[%clk 0:03:00]}  Rc8 {[%clk 0:02:52]} 13. h3 {[%clk 0:02:46]}  h6 {[%clk 0:02:51]} 14. Bh4 {[%clk 0:02:45]}  a6 {[%clk 0:02:50]} 15. e4 {[%clk 0:02:32]}  c5 {[%clk 0:02:50]} 16. e5 {[%clk 0:02:30]}  cxd4 {[%clk 0:02:48]} 17. Nxd4 {[%clk 0:02:07]}  Bc5 {[%clk 0:02:30]} 18. Bf2 {[%clk 0:02:04]}  N6d7 {[%clk 0:02:27]} 19. f4 {[%clk 0:02:03]}  Nb6 {[%clk 0:02:03]} 20. f5 {[%clk 0:01:30]}  Bd7 {[%clk 0:02:02]} 21. f6 {[%clk 0:01:02]}  g6 {[%clk 0:02:01]} 22. Rde1 {[%clk 0:00:53]}  Ne6 {[%clk 0:01:57]} 23. Nxe6 {[%clk 0:00:50]}  Bxe6 {[%clk 0:01:52]} 24. Qd2 {[%clk 0:00:25]}  Bf8 {[%clk 0:01:50]} 25. Bb1 {[%clk 0:00:23]}  Nc4 {[%clk 0:01:48]} 26. Qe2 {[%clk 0:00:22]}  Qc7 {[%clk 0:01:44]} 27. Bd4 {[%clk 0:00:22]}  b5 {[%clk 0:01:40]} 28. a3 {[%clk 0:00:21]}  Qb7 {[%clk 0:01:12]} 29. Qf2 {[%clk 0:00:21]}  b4 {[%clk 0:01:06]} 30. axb4 {[%clk 0:00:21]}  Qxb4 {[%clk 0:01:06]} 31. Re2 {[%clk 0:00:18]}  Bc5 {[%clk 0:00:52]} 32. Bxc5 {[%clk 0:00:16]}  Qxc5 {[%clk 0:00:52]} 33. Kh2 {[%clk 0:00:12]}  Qxf2 {[%clk 0:00:51]} 34. Rexf2 {[%clk 0:00:13]}  Nxb2 {[%clk 0:00:49]} 35. Nxd5 {[%clk 0:00:10]}  Bxd5 {[%clk 0:00:48]} 36. Rxb2 {[%clk 0:00:09]}  Rxe5 {[%clk 0:00:47]} 37. Rb6 {[%clk 0:00:07]}  Bc4 {[%clk 0:00:45]} 38. Rf2 {[%clk 0:00:07]}  Bb5 {[%clk 0:00:44]} 39. Ba2 {[%clk 0:00:06]}  Rf8 {[%clk 0:00:28]} 40. Rb7 {[%clk 0:00:05]}  h5 {[%clk 0:00:27]} 41. Ra7 {[%clk 0:00:04]}  Rg5 {[%clk 0:00:26]} 42. Rf3 {[%clk 0:00:03]}  h4 {[%clk 0:00:25]} 43. Rf4 {[%clk 0:00:03]}  Bc6 {[%clk 0:00:25]} 44. Rg4 {[%clk 0:00:03]}  Rxg4 {[%clk 0:00:25]} 45. hxg4 {[%clk 0:00:04]}  g5 {[%clk 0:00:25]} 46. Kh3 {[%clk 0:00:04]}  Bb5 {[%clk 0:00:24]} 47. g3 {[%clk 0:00:04]}  hxg3 {[%clk 0:00:23]} 48. Kxg3 {[%clk 0:00:05]}  Kh7 {[%clk 0:00:21]} 49. Bxf7 {[%clk 0:00:04]}  Kh8 {[%clk 0:00:20]} 50. Kf3 {[%clk 0:00:04]}  Bc6+ {[%clk 0:00:20]} 51. Ke3 {[%clk 0:00:04]}  Bb5 {[%clk 0:00:19]} 52. Kd4 {[%clk 0:00:04]}  Be2 {[%clk 0:00:18]} 53. Bh5 {[%clk 0:00:02]}  Rxf6 {[%clk 0:00:17]} 54. Ke5 {[%clk 0:00:03]}  Rb6 {[%clk 0:00:17]} 55. Kf5 {[%clk 0:00:03]}  Rb5+ {[%clk 0:00:15]} 56. Kg6 {[%clk 0:00:03]}  Rb6+ {[%clk 0:00:15]} 57. Kxg5 {[%clk 0:00:03]}  Kg8 {[%clk 0:00:15]} 58. Bg6 {[%clk 0:00:03]}  Rb5+ {[%clk 0:00:12]} 59. Bf5 {[%clk 0:00:03]}  Rb6 {[%clk 0:00:12]} 60. Bg6 {[%clk 0:00:02]}  Rb5+ {[%clk 0:00:11]} 61. Bf5 {[%clk 0:00:03]}  Rb6 {[%clk 0:00:11]} 62. Bg6 {[%clk 0:00:03]} 1/2-1/2


[Site "https://www.chess.com"]

[Event "Titled Tuesday Blitz June 6 Late 2023"]
[White "Eidelman, Gabriel"]
[Black "Spichkin, Alexander"]
[WhiteFideId "30910544"]
[BlackFideId "4144074"]
[WhiteElo "2440"]
[BlackElo "1986"]
[Result "1-0"]
[Round "8"]
[TimeControl "180+2"]
[Date "2023.06.07"]
[WhiteClock "0:00:41"]
[BlackClock "0:01:42"]
[Board "104"]

1. Nc3 {[%clk 0:03:00]}  d5 {[%clk 0:02:56]} 2. e4 {[%clk 0:03:00]}  d4 {[%clk 0:02:53]} 3. Nce2 {[%clk 0:03:00]}  e5 {[%clk 0:02:52]} 4. Nf3 {[%clk 0:03:00]}  Nc6 {[%clk 0:02:51]} 5. d3 {[%clk 0:02:58]}  Nf6 {[%clk 0:02:50]} 6. g3 {[%clk 0:02:58]}  Bg4 {[%clk 0:02:48]} 7. Bg2 {[%clk 0:02:59]}  Qd7 {[%clk 0:02:48]} 8. h3 {[%clk 0:02:56]}  Bxf3 {[%clk 0:02:46]} 9. Bxf3 {[%clk 0:02:57]}  Be7 {[%clk 0:02:46]} 10. Bg2 {[%clk 0:02:53]}  O-O-O {[%clk 0:02:46]} 11. O-O {[%clk 0:02:41]}  Ne8 {[%clk 0:02:44]} 12. f4 {[%clk 0:02:39]}  Nd6 {[%clk 0:02:39]} 13. c3 {[%clk 0:02:25]}  dxc3 {[%clk 0:02:35]} 14. bxc3 {[%clk 0:02:25]}  Nc4 {[%clk 0:02:27]} 15. fxe5 {[%clk 0:01:56]}  Qxd3 {[%clk 0:02:26]} 16. Qxd3 {[%clk 0:01:55]}  Rxd3 {[%clk 0:02:25]} 17. Rxf7 {[%clk 0:01:54]}  Bc5+ {[%clk 0:02:21]} 18. Kh2 {[%clk 0:01:50]}  N6xe5 {[%clk 0:02:18]} 19. Rxg7 {[%clk 0:01:40]}  h5 {[%clk 0:02:17]} 20. Nf4 {[%clk 0:01:30]}  Re3 {[%clk 0:02:07]} 21. Bxe3 {[%clk 0:01:17]}  Nxe3 {[%clk 0:02:07]} 22. Nd5 {[%clk 0:01:08]}  Bd6 {[%clk 0:02:06]} 23. Nxe3 {[%clk 0:01:06]}  h4 {[%clk 0:02:02]} 24. Nf5 {[%clk 0:01:01]}  hxg3+ {[%clk 0:02:01]} 25. Kxg3 {[%clk 0:00:52]}  Bf8 {[%clk 0:01:56]} 26. Rg5 {[%clk 0:00:44]}  Nf7 {[%clk 0:01:56]} 27. Rg4 {[%clk 0:00:44]}  Ne5 {[%clk 0:01:55]} 28. Rh4 {[%clk 0:00:43]}  Rg8+ {[%clk 0:01:54]} 29. Kh2 {[%clk 0:00:44]}  Ba3 {[%clk 0:01:51]} 30. Rd1 {[%clk 0:00:44]}  Bb2 {[%clk 0:01:49]} 31. Ne7+ {[%clk 0:00:42]}  Kb8 {[%clk 0:01:48]} 32. Nxg8 {[%clk 0:00:43]}  a5 {[%clk 0:01:48]} 33. Nf6 {[%clk 0:00:41]}  Bxc3 {[%clk 0:01:48]} 34. Ng4 {[%clk 0:00:40]}  Nc6 {[%clk 0:01:48]} 35. e5 {[%clk 0:00:39]}  Nxe5 {[%clk 0:01:44]} 36. Nxe5 {[%clk 0:00:40]}  Bxe5+ {[%clk 0:01:45]} 37. Kh1 {[%clk 0:00:41]}  Ka7 {[%clk 0:01:45]} 38. Re4 {[%clk 0:00:42]}  Bc3 {[%clk 0:01:45]} 39. h4 {[%clk 0:00:42]}  b5 {[%clk 0:01:45]} 40. h5 {[%clk 0:00:43]}  b4 {[%clk 0:01:44]} 41. h6 {[%clk 0:00:44]}  Kb6 {[%clk 0:01:45]} 42. h7 {[%clk 0:00:43]}  c5 {[%clk 0:01:45]} 43. Rd3 {[%clk 0:00:42]}  Bb2 {[%clk 0:01:44]} 44. Rd8 {[%clk 0:00:42]}  Kb5 {[%clk 0:01:44]} 45. h8=Q {[%clk 0:00:42]}  Bxh8 {[%clk 0:01:44]} 46. Rxh8 {[%clk 0:00:42]}  Ka4 {[%clk 0:01:43]} 47. Bf1 {[%clk 0:00:42]}  c4 {[%clk 0:01:41]} 48. Bxc4 {[%clk 0:00:42]}  b3 {[%clk 0:01:40]} 49. Bxb3+ {[%clk 0:00:42]}  Ka3 {[%clk 0:01:41]} 50. Ra4+ {[%clk 0:00:42]}  Kb2 {[%clk 0:01:42]} 51. Rxa5 {[%clk 0:00:41]}  Kc3 {[%clk 0:01:42]} 1-0


[Site "https://www.chess.com"]